bitfinex/quotes_ETHUSD_20260312
["timestamp","ask_amount","ask_price","bid_price","bid_amount"]
[1773312041986,4.577201,2073.7,2072.8,4.59568146]
[1773312042144,1.20563271,2073.6,2072.9,0.00099998]
[1773312042485,8.369239,2073.6,2073.0,0.00099998]
[1773312042640,8.369239,2073.6,2072.9,0.00099998]
[1773312042845,5.126239,2073.6,2072.9,0.00099998]
[1773312043161,4.18841,2073.6,2072.9,0.00099998]
[1773312043369,1.89060773,2073.6,2073.0,0.00099998]
[1773312043568,1.89060773,2073.6,2072.9,0.00099998]
[1773312043953,1.89060773,2073.6,2072.8,1.20608136]
[1773312044161,1.89060773,2073.6,2072.9,0.00099998]
[1773312044354,1.20569086,2073.5,2072.9,0.00099998]
[1773312044553,1.89060773,2073.4,2072.9,0.00099998]
[1773312044762,1.20569086,2073.5,2073.0,0.00099998]
[1773312044969,1.20569086,2073.5,2072.7,0.00099998]
[1773312045368,3.09629859,2073.5,2072.6,3.1154608]
[1773312045576,1.89060773,2073.3,2072.7,0.00099998]
[1773312045870,1.89060773,2073.3,2072.5,0.00099998]
[1773312046484,1.89060773,2073.1,2072.5,0.00099998]
[1773312046659,1.20586532,2073.2,2072.6,0.00099998]
[1773312046859,3.09640359,2073.4,2072.7,0.00099998]
[1773312047080,3.09640359,2073.4,2072.5,3.52476152]
[1773312047964,3.09640359,2073.4,2072.6,0.00099998]
[1773312048561,1.20563271,2073.6,2072.7,3.5257615]
[1773312049660,1.89060773,2073.5,2072.8,0.00099998]
[1773312049890,1.89060773,2073.5,2072.6,1.20621441]
[1773312050386,1.89060773,2073.5,2072.7,0.00099998]
[1773312050794,1.80601274,2073.3,2072.7,0.00099998]
[1773312051162,1.80601274,2073.3,2072.5,1.20627261]
[1773312051764,1.80601274,2073.3,2072.6,0.001]
[1773312051966,6.62877618,2073.6,2072.8,1.61551513]
[1773312052179,1.80601274,2073.5,2072.7,1.84680353]
[1773312052380,4.82276344,2073.6,2072.7,1.84680353]
[1773312052676,1.20563271,2073.6,2072.7,1.84680353]
[1773312053079,0.002,2073.3,2072.8,1.20609803]
[1773312055072,1.20780716,2073.3,2072.6,1.20721441]
[1773312056675,1.80601274,2073.2,2072.6,0.001]
[1773312057100,0.002,2073.3,2072.6,1.84780353]
[1773312057307,0.002,2073.3,2072.7,1.84680353]
[1773312057602,1.2078511,2073.3,2072.7,1.84680353]
[1773312057814,3.01386384,2073.3,2072.6,0.001]
[1773312058002,1.80601274,2073.2,2072.6,0.001]
[1773312059001,3.01193623,2073.1,2072.6,0.001]
[1773312059515,1.80601274,2073.0,2072.6,0.001]
[1773312060190,1.20592349,2073.1,2072.6,0.001]
[1773312060690,6.62970672,2073.2,2072.6,0.001]
[1773312060691,1.20588864,2073.2,2072.6,1.84780353]
[1773312060900,1.20782585,2073.3,2072.6,1.84780353]
[1773312061210,0.002,2073.3,2072.7,1.20615622]
[1773312061514,1.80801274,2073.3,2072.7,1.20615622]
[1773312061679,0.002,2073.3,2072.9,1.61551513]
[1773312061878,0.002,2073.3,2072.9,1.84680353]
[1773312062104,0.002,2073.3,2072.7,1.20615622]
[1773312062478,0.002,2073.3,2072.7,3.05295975]
[1773312063408,0.002,2073.3,2072.8,1.84680353]
[1773312065602,0.002,2073.3,2072.9,1.20603984]
[1773312066388,2.50778226,2073.9,2073.0,1.84680353]
[1773312066593,3.71326176,2073.9,2073.1,1.84680353]
[1773312066793,1.2054795,2073.9,2073.1,1.84680353]
[1773312067004,3.01143488,2074.0,2073.1,1.84680353]
[1773312067815,3.01143488,2074.0,2073.2,1.20586532]
[1773312068187,0.002,2073.4,2073.2,3.05266885]
[1773312068712,0.002,2073.4,2073.3,1.84680353]
[1773312070218,0.002,2073.4,2073.3,3.05261069]
[1773312078654,0.002,2073.4,2073.3,5.47161069]
[1773312078924,3.0112614,2074.3,2073.5,1.84680353]
[1773312079313,3.0112614,2074.3,2073.6,1.20563271]
[1773312079926,1.80601274,2074.3,2073.6,3.05243624]
[1773312080704,1.80601274,2074.3,2073.7,1.76396037]
[1773312080907,3.01124055,2074.3,2073.7,1.76396037]
[1773312082325,1.77208899,2074.2,2073.5,0.001]
[1773312083918,1.77208899,2074.5,2073.6,1.76396037]
[1773312084119,2.97731484,2074.3,2073.7,1.20557457]
[1773312084716,1.20522585,2074.3,2073.7,1.20557457]
[1773312085041,1.77208899,2074.2,2073.7,1.20557457]
[1773312086353,1.77208899,2074.1,2073.7,1.20557457]
[1773312088129,1.77208899,2074.4,2073.8,1.76396037]
[1773312088644,1.20507361,2074.6,2073.9,2.96941868]
[1773312088848,4.84838007,2075.4,2074.3,1.76396037]
[1773312088849,1.77208899,2075.2,2074.3,1.76396037]
[1773312089837,3.10489407,2075.4,2074.3,1.76396037]
[1773312090959,1.23459926,2075.4,2074.6,1.73835978]
[1773312091134,6.68825342,2075.6,2074.4,1.20516775]
[1773312091135,4.92639579,2076.1,2075.1,1.73835978]
[1773312091454,4.92639579,2076.1,2074.4,1.20516775]
[1773312091455,1.87025954,2075.7,2074.7,1.73835978]
[1773312091958,1.87025954,2075.7,2074.3,1.73835978]
[1773312091959,1.87025954,2075.3,2074.3,1.73835978]
[1773312092143,22.90097954,2075.5,2074.5,1.73835978]
[1773312092453,1.87025954,2075.3,2074.5,1.73835978]
[1773312092849,1.87025954,2075.3,2074.3,1.73835978]
[1773312092850,3.0749627,2075.2,2074.3,1.73835978]
[1773312093065,3.0749627,2075.2,2074.3,2.94353012]
[1773312093264,3.0749627,2075.2,2074.4,1.73835978]
[1773312093466,1.87025954,2075.1,2074.1,2.94365974]
[1773312093756,1.87025954,2075.1,2074.1,1.73835978]
[1773312094124,1.20470316,2075.2,2074.1,1.73835978]
[1773312094326,1.87025954,2075.1,2074.0,2.94372351]
[1773312094531,1.87025954,2075.1,2074.1,1.73835978]
[1773312095236,1.20481927,2075.0,2074.2,1.73835978]
[1773312096358,3.07507881,2075.0,2074.2,1.73835978]
[1773312096932,0.002,2074.9,2074.2,1.73835978]
[1773312098672,0.002,2074.9,2074.2,2.94363819]
[1773312099775,0.002,2074.9,2074.2,1.73835978]
[1773312099971,0.002,2074.9,2074.2,2.94363867]
[1773312100385,0.002,2074.9,2074.2,1.73835978]
[1773312100583,0.002,2074.9,2074.2,2.94363634]
[1773312102479,0.002,2074.9,2074.3,1.73835978]
[1773312104187,1.85001907,2074.7,2073.8,1.74116056]
[1773312104566,3.05507064,2074.6,2073.9,1.20545831]
[1773312104886,3.05507064,2074.6,2073.9,2.94661887]
[1773312105101,3.05507064,2074.6,2073.6,1.74116056]
[1773312105102,1.85001907,2074.5,2073.6,1.74116056]
[1773312105254,1.20505157,2074.6,2073.7,1.74116056]
[1773312105453,3.05505336,2074.7,2073.7,1.74116056]
[1773312106393,1.85001907,2074.6,2073.7,1.74116056]
[1773312106598,1.85001907,2074.6,2073.9,1.74116056]
[1773312106599,1.20510966,2074.5,2073.9,1.74116056]
[1773312107801,3.05512786,2074.6,2073.9,1.74116056]
[1773312107999,1.85001907,2074.5,2073.9,1.74116056]
[1773312108300,1.85001907,2074.5,2073.8,1.74116056]
[1773312108657,3.05518682,2074.4,2073.8,1.74116056]
[1773312108853,1.85001907,2074.3,2073.6,2.94675005]
[1773312109678,1.85001907,2074.3,2073.6,2.94678321]
[1773312110380,1.85001907,2074.3,2073.8,0.001]
[1773312110887,2.95772096,2074.2,2073.8,0.001]
[1773312111088,1.752437,2074.1,2073.5,0.001]
[1773312112368,1.752437,2074.0,2073.5,0.001]
[1773312112767,1.752437,2073.6,2073.0,0.001]
[1773312112980,2.49805937,2073.8,2072.6,1.20718487]
[1773312112981,1.752437,2073.3,2072.6,1.20718487]
[1773312113369,1.752437,2073.3,2072.6,1.20719618]
[1773312113985,1.752437,2073.2,2072.6,0.001]
[1773312114168,1.752437,2073.2,2072.6,1.20720511]
[1773312114577,1.752437,2073.2,2072.6,0.001]
[1773312115001,2.95836049,2073.1,2072.6,0.001]
[1773312115566,1.20592349,2073.1,2072.6,0.001]
[1773312115905,2.95832425,2073.2,2072.6,0.001]
[1773312117369,2.95832425,2073.2,2072.6,1.20721441]
[1773312117670,1.752437,2073.5,2072.7,1.73427725]
[1773312118398,1.752437,2073.4,2072.7,1.73427725]
[1773312118595,1.752437,2073.4,2072.6,1.20721441]
[1773312118892,1.752437,2073.4,2072.6,1.73527725]
[1773312119483,2.95820888,2073.4,2072.7,2.94043347]
[1773312119683,2.95820888,2073.4,2072.8,1.73427725]
[1773312119890,1.205629,2073.7,2072.8,1.73427725]
[1773312120836,2.95799307,2073.8,2072.8,1.73427725]
[1773312121324,1.752437,2073.7,2072.8,1.73427725]
[1773312121630,1.20557545,2073.7,2073.0,1.73427725]
[1773312122930,0.24515428,2074.0,2073.1,1.73427725]
[1773312123120,1.99759128,2074.0,2073.1,1.73427725]
[1773312123504,1.752437,2074.0,2073.3,1.73427725]
[1773312123706,12.522069,2074.2,2073.3,1.73427725]
[1773312123925,5.633251,2074.1,2073.3,1.73427725]
[1773312124142,4.394251,2074.1,2073.3,1.73427725]
[1773312124611,1.752437,2074.1,2073.3,1.73427725]
[1773312124812,1.752437,2074.1,2073.5,0.001]
[1773312125921,1.20540019,2074.0,2073.5,0.001]
[1773312126327,2.95781878,2074.1,2073.5,0.001]
[1773312126531,2.229,2074.5,2073.5,1.73527725]
[1773312126736,2.229,2074.5,2073.7,1.73427725]
[1773312127926,2.229,2074.5,2073.9,1.73427725]
[1773312128132,5.18654763,2074.5,2073.9,1.73427725]
[1773312129536,5.1865555,2074.5,2073.9,1.73427725]
[1773312130030,5.1865555,2074.5,2073.9,2.93970255]
[1773312130409,5.1865555,2074.5,2073.9,2.93973168]
[1773312130833,5.1865555,2074.5,2073.9,1.73427725]
[1773312131335,5.1865555,2074.5,2073.9,2.93973023]
[1773312132808,5.1865555,2074.5,2073.9,1.73427725]
[1773312133036,1.752437,2074.4,2073.8,1.20547137]
[1773312133228,1.752437,2074.4,2073.7,2.93981341]
[1773312133623,1.752437,2074.4,2073.7,2.93984961]
[1773312134242,1.752437,2074.2,2073.5,1.20664665]
[1773312134718,1.752437,2074.2,2073.5,2.9409239]
[1773312135045,1.752437,2074.2,2073.5,1.20667708]
[1773312135231,7.04952407,2074.5,2073.5,1.20667708]
[1773312135232,2.95751119,2074.6,2073.7,1.73427725]
[1773312135739,1.61513206,2074.3,2073.7,1.73427725]
[1773312135952,1.61513206,2074.3,2073.5,0.001]
[1773312135953,1.752437,2074.2,2073.5,0.001]
[1773312136256,1.752437,2074.0,2073.5,1.20667489]
[1773312137048,1.752437,2074.0,2073.5,0.001]
[1773312138236,6.57255158,2074.7,2073.9,1.73427725]
[1773312138406,1.752437,2074.6,2073.9,1.73427725]
[1773312140239,2.99876529,2074.4,2073.7,2.93980829]
[1773312140417,2.99876529,2074.4,2073.5,0.001]
[1773312140418,3.4107296,2074.0,2073.5,0.001]
[1773312140828,5.6357296,2074.0,2073.5,0.001]
[1773312141029,1.79359754,2073.9,2073.5,0.001]
[1773312142332,2.99909945,2073.9,2073.5,0.001]
[1773312142541,2.99908541,2073.9,2073.5,0.001]
[1773312142947,1.79359754,2073.9,2073.5,0.001]
[1773312143142,2.99906804,2073.9,2073.5,0.001]
[1773312143847,1.79359754,2073.8,2073.5,0.001]
[1773312145149,1.79359754,2073.8,2073.3,0.001]
[1773312145150,1.79359754,2073.6,2073.3,0.001]
[1773312145351,2.99913152,2073.8,2073.3,0.001]
[1773312145520,1.20549191,2073.9,2073.3,1.66473255]
[1773312146020,4.02059754,2074.0,2073.3,1.66473255]
[1773312146221,2.227,2074.0,2073.3,1.66473255]
[1773312147160,2.227,2074.0,2073.5,1.66373255]
[1773312149343,2.227,2074.0,2073.6,1.20563271]
[1773312149841,0.002,2074.0,2073.7,1.66373255]
[1773312150928,0.002,2074.0,2073.5,1.66373255]
[1773312151128,3.84113206,2074.5,2073.7,1.66373255]
[1773312151129,4.01959754,2074.5,2073.7,1.66373255]
[1773312151327,5.22470962,2074.5,2073.7,1.66373255]
[1773312153350,4.01959754,2074.5,2073.9,1.66373255]
[1773312153555,2.226,2074.5,2073.9,1.66373255]
[1773312154262,5.22471554,2074.5,2073.9,1.66373255]
[1773312155141,0.002,2074.4,2073.9,1.66373255]
[1773312155341,0.002,2074.4,2073.9,2.86914025]
[1773312155662,0.002,2074.4,2073.4,1.61513206]
[1773312155861,1.79359754,2074.3,2073.6,1.66373255]
[1773312156233,0.002,2074.4,2073.6,1.66373255]
[1773312156956,1.79559754,2074.4,2073.6,1.66373255]
[1773312157154,1.61513206,2074.3,2073.6,1.66373255]
[1773312157365,1.79359754,2074.2,2073.5,1.20569086]
[1773312157763,2.99893961,2074.1,2073.4,2.86943885]
[1773312158172,1.20532135,2074.2,2073.5,1.66373255]
[1773312158473,2.99891889,2074.2,2073.5,1.66373255]
[1773312158688,1.79359754,2074.1,2073.5,1.66373255]
[1773312159770,1.20540019,2074.0,2073.5,2.86938395]
[1773312159954,2.99899773,2074.0,2073.5,2.86942325]
[1773312160355,1.79359754,2074.0,2073.5,2.86942325]
[1773312162577,2.99900286,2074.0,2073.5,2.86942325]
[1773312162959,1.20539007,2074.1,2073.6,1.66373255]
[1773312163162,2.99891861,2074.2,2073.6,1.66373255]
[1773312163870,1.73280691,2074.1,2073.6,1.66373255]
[1773312164071,1.73280691,2074.1,2073.4,2.98011568]
[1773312164573,1.20532107,2074.2,2073.5,1.774396]
[1773312164574,1.73280691,2074.2,2073.5,1.774396]
[1773312165461,1.73280691,2074.1,2073.5,1.774396]
[1773312166572,1.73280691,2074.3,2073.7,1.774396]
[1773312168675,1.20528396,2074.2,2073.7,2.97992376]
[1773312169289,1.20528396,2074.2,2073.7,1.775396]
[1773312169680,2.93809087,2074.2,2073.7,0.001]
[1773312170386,1.75425458,2074.1,2073.7,0.001]
[1773312170593,1.20540019,2074.0,2073.7,0.001]
[1773312170798,1.75425458,2073.9,2073.5,0.001]
[1773312172686,1.20551644,2073.8,2073.5,0.001]
[1773312173982,2.95977102,2073.8,2073.5,0.001]
[1773312174183,1.75425458,2073.7,2073.1,0.001]
[1773312174793,1.75425458,2073.5,2073.1,0.001]
[1773312175086,1.75425458,2073.3,2073.1,0.001]
[1773312177389,2.9601199,2073.2,2073.1,0.001]
[1773312177609,1.20586532,2073.2,2072.6,2.91513449]
[1773312177891,2.96010853,2073.3,2072.7,1.70792239]
[1773312178267,1.20585395,2073.3,2072.7,1.70792239]
[1773312179374,2.96010853,2073.3,2072.7,1.70792239]
[1773312179578,5.40319958,2073.1,2072.6,1.20720121]
[1773312179776,1.75425458,2073.1,2072.6,1.20720121]
[1773312179977,1.75425458,2073.1,2072.6,0.001]
[1773312180277,1.75425458,2073.1,2072.6,1.70892239]
[1773312180601,1.75425458,2073.1,2072.6,2.91513445]
[1773312180773,1.75425458,2073.1,2072.6,0.001]
[1773312180973,1.20585395,2073.3,2072.6,1.20721209]
[1773312181178,7.680267,2073.2,2072.7,1.70792239]
[1773312181790,1.20592349,2073.1,2072.7,1.70792239]
[1773312181998,1.20592349,2073.1,2072.7,2.91407693]
[1773312182495,2.257355,2073.1,2072.7,2.91406792]
[1773312183095,2.257355,2073.1,2072.8,0.001]
[1773312183391,2.257355,2073.1,2072.6,1.20718363]
[1773312183392,1.75425458,2073.1,2072.6,0.001]
[1773312183592,1.75425458,2072.9,2072.6,0.001]
[1773312183781,2.96031502,2072.9,2072.6,0.001]
[1773312185698,1.75425458,2072.8,2072.6,0.001]
[1773312185893,2.96039313,2072.8,2072.6,0.001]
[1773312186693,1.75425458,2072.7,2072.6,0.001]
[1773312188069,2.9604108,2072.7,2072.4,0.001]
[1773312188396,1.75425458,2072.6,2072.4,0.001]
[1773312188598,1.20615622,2072.7,2071.6,1.26714481]
[1773312188599,3.416543,2072.3,2071.6,1.26714481]
[1773312188775,1.75425458,2072.4,2071.6,1.26714481]
[1773312190197,1.75425458,2072.3,2071.7,1.20673842]
[1773312190499,1.75425458,2072.6,2071.8,1.39914512]
[1773312190698,1.20616768,2072.7,2071.7,1.20673842]
[1773312190699,1.75425458,2072.3,2071.7,1.20673842]
[1773312191966,1.75425458,2072.3,2071.4,1.39798221]
[1773312192197,2.96066292,2072.3,2071.7,1.20673842]
[1773312192396,1.75425458,2072.5,2071.8,1.39482657]
[1773312192786,1.75425458,2072.3,2071.7,1.20673842]
[1773312194297,1.75425458,2072.1,2071.5,1.20685493]
[1773312196288,1.75425458,2071.9,2071.4,2.59651948]
[1773312196495,1.75425458,2071.9,2071.7,0.001]
[1773312196804,1.2065637,2072.0,2071.7,0.001]
[1773312197006,2.96081828,2072.0,2071.7,0.001]
[1773312197893,1.75425458,2072.0,2071.7,0.001]
[1773312198681,2.96084001,2072.0,2071.7,0.001]
[1773312199012,1.75425458,2071.9,2071.7,0.001]
[1773312199382,1.75425458,2072.1,2071.7,0.001]
[1773312200798,1.76045086,2072.0,2071.7,0.001]
[1773312201992,3.99245086,2072.2,2071.7,0.001]
[1773312202300,2.232,2072.2,2071.8,1.35590297]
[1773312202813,2.232,2072.2,2071.8,1.20666237]
[1773312204795,2.232,2072.2,2071.8,1.3483341]
[1773312205191,1.76045086,2072.1,2071.7,0.001]
[1773312205918,1.76045086,2072.0,2071.5,0.001]
[1773312206112,1.76045086,2071.7,2071.5,0.001]
[1773312207217,1.76045086,2071.7,2071.4,0.001]
[1773312207218,1.76045086,2071.6,2071.4,0.001]
[1773312207589,1.76045086,2071.7,2071.4,0.001]
[1773312207794,1.76045086,2071.6,2071.4,0.001]
[1773312209097,2.061225,2071.7,2071.4,0.001]
[1773312209431,1.76045086,2071.8,2071.4,0.001]
[1773312209733,0.002,2071.8,2071.7,0.001]
[1773312211033,1.76245086,2071.8,2071.7,0.001]
[1773312211221,2.96913104,2071.8,2071.7,0.001]
[1773312211525,1.76045086,2071.7,2071.5,0.001]
[1773312212224,1.76045086,2071.7,2071.2,1.20802974]
[1773312212225,1.76045086,2071.7,2071.2,0.001]
[1773312213224,1.76045086,2071.5,2071.2,0.001]
[1773312214916,2.239,2071.7,2071.2,1.3138024]
[1773312215195,0.002,2071.8,2071.3,2.51621852]
[1773312215622,0.002,2071.8,2071.4,1.30924706]
[1773312215825,0.002,2072.0,2071.4,1.30724706]
[1773312217232,1.76245086,2072.0,2071.4,1.30724706]
[1773312217404,1.76045086,2071.9,2071.2,1.30126729]
[1773312218093,0.002,2072.0,2071.2,1.30126729]
[1773312219406,0.002,2072.0,2071.4,1.29330161]
[1773312221416,1.76245086,2072.0,2071.4,1.29330161]
[1773312221621,1.76245086,2072.0,2071.5,1.20685493]
[1773312222104,0.002,2072.0,2071.6,1.28297503]
[1773312223931,0.002,2072.0,2071.3,1.27844369]
[1773312223932,1.5842261,2071.9,2071.3,1.27844369]
[1773312224230,0.002,2072.0,2071.3,1.27844369]
[1773312224231,1.5862261,2072.0,2071.3,1.27844369]
[1773312224933,1.5862261,2072.0,2071.4,0.001]
[1773312225226,0.002,2071.8,2071.4,0.001]
[1773312226144,0.002,2071.8,2071.4,1.20791319]
[1773312226365,1.5862261,2071.8,2071.4,1.20791319]
[1773312226824,0.002,2072.0,2071.5,1.26838895]
[1773312228039,0.002,2072.0,2071.6,1.20679667]
[1773312229633,1.5862261,2072.0,2071.6,1.20679667]
[1773312230412,1.64538709,2071.9,2071.6,1.20679667]
[1773312231739,0.002,2072.0,2071.5,6.09994401]
[1773312232422,1.64738709,2072.0,2071.5,6.09994401]
[1773312234064,1.64738709,2072.0,2071.6,1.2663725]
[1773312234562,1.64538709,2071.9,2071.4,0.001]
[1773312234741,1.64538709,2071.9,2071.4,1.26420496]
[1773312237148,1.64538709,2071.8,2071.5,1.20685493]
[1773312237349,1.64538709,2071.8,2071.7,0.001]
[1773312237544,1.64538709,2071.8,2071.4,0.001]
[1773312237545,1.64738709,2071.8,2071.4,0.001]
[1773312237759,1.64738709,2071.8,2071.4,1.20789123]
[1773312237961,1.64738709,2071.8,2071.5,0.001]
[1773312239068,1.64538709,2071.7,2071.5,0.001]
[1773312240164,1.64538709,2071.7,2071.4,0.001]
[1773312240556,1.64538709,2071.5,2071.2,0.001]
[1773312241245,1.64538709,2071.3,2071.2,0.001]
[1773312241438,2.237,2071.6,2071.2,1.24351857]
[1773312242842,2.237,2071.6,2071.2,0.001]
[1773312243044,2.237,2071.6,2071.2,1.23743425]
[1773312243645,1.64538709,2071.5,2071.2,0.001]
[1773312243943,1.64538709,2071.9,2071.3,1.0038396]
[1773312244273,8.32846253,2071.8,2071.3,1.0038396]
[1773312244485,1.64538709,2071.8,2071.3,1.0038396]
[1773312245045,1.64538709,2071.8,2071.4,1.20691319]
[1773312245547,8.32846253,2071.7,2071.3,1.20694765]
[1773312246246,1.64538709,2071.6,2071.3,1.20694765]
[1773312247164,6.68307544,2071.6,2071.3,2.39414995]
[1773312248257,1.64538709,2071.8,2071.3,2.39414995]
[1773312249075,2.85206771,2071.8,2071.3,2.39414995]
[1773312249274,6.68307544,2071.7,2071.4,1.23557993]
[1773312250050,6.68307544,2071.7,2071.5,0.001]
[1773312250252,0.002,2071.6,2071.5,0.001]
[1773312251788,1.64738709,2071.6,2071.3,1.20796258]
[1773312251992,8.33046253,2071.6,2071.3,1.20796258]
[1773312253971,9.5372946,2071.6,2071.3,0.001]
[1773312254173,8.33046253,2071.6,2071.3,0.001]
[1773312254580,6.68307544,2071.5,2071.3,0.001]
[1773312254894,6.68307544,2071.4,2071.3,0.001]
[1773312255463,8.32846253,2071.4,2071.3,0.001]
[1773312256091,8.32846253,2071.4,2071.1,0.001]
[1773312256092,6.68107544,2071.3,2071.1,0.001]
[1773312257300,8.32646253,2071.3,2071.1,0.001]
[1773312258085,2.241,2071.5,2071.1,1.18623531]
[1773312258285,6.68107544,2071.4,2071.1,1.18623531]
[1773312258909,2.241,2071.5,2071.1,1.18623531]
[1773312259063,8.92207544,2071.5,2071.1,1.18623531]
[1773312259458,8.92207544,2071.5,2071.3,1.16681569]
[1773312259685,6.68107544,2071.4,2071.2,1.20702974]
[1773312259984,6.68107544,2071.4,2071.3,1.16681569]
[1773312260184,2.241,2071.5,2071.3,1.16681569]
[1773312260896,0.002,2071.6,2071.3,1.16681569]
[1773312261284,0.002,2071.8,2071.4,1.3365999]
[1773312261964,0.002,2071.8,2071.5,1.20685493]
[1773312262385,1.6252406,2071.8,2071.5,1.20685493]
[1773312262873,1.6252406,2071.8,2071.4,2.54346574]
[1773312263991,1.6252406,2071.8,2071.4,1.20686584]
[1773312264765,1.6252406,2071.8,2071.1,1.20804783]
[1773312264766,1.6232406,2071.6,2071.1,1.20804783]
[1773312264981,1.6232406,2071.6,2071.2,1.30885386]
[1773312265180,1.6252406,2071.8,2071.2,1.30885386]
[1773312265585,1.6252406,2071.8,2071.4,1.29974588]
[1773312265796,0.002,2071.6,2071.4,1.29974588]
[1773312265965,0.002,2071.6,2071.5,1.20685493]
[1773312266993,0.002,2071.6,2071.5,2.4975712]
[1773312267192,0.002,2071.8,2071.6,1.27976293]
[1773312268094,0.002,2071.8,2071.6,2.48652779]
[1773312269893,0.002,2071.8,2071.7,1.26215584]
[1773312270211,0.002,2072.0,2071.8,1.20668018]
[1773312270497,0.002,2072.0,2071.8,1.25343036]
[1773312271699,0.002,2072.0,2071.7,1.20669023]
[1773312273305,0.002,2072.0,2071.7,2.43443687]
[1773312274276,1.6252406,2072.0,2071.7,2.43443687]
[1773312275113,0.002,2072.0,2071.7,2.43443687]
[1773312275480,1.6252406,2072.0,2071.7,2.43443687]
[1773312276688,1.6252406,2072.0,2071.7,2.43446181]
[1773312278404,1.6252406,2072.0,2071.9,0.001]
[1773312279508,0.002,2072.1,2071.9,0.001]
[1773312279682,1.6252406,2072.3,2071.9,0.001]
[1773312280182,1.6252406,2072.3,2071.9,1.17915811]
[1773312280876,0.002,2072.3,2072.0,2.37682396]
[1773312281276,0.002,2072.3,2072.0,1.2065637]
[1773312281504,0.002,2072.3,2072.1,1.16229517]
[1773312282705,0.002,2072.7,2072.2,1.15239542]
[1773312282894,0.002,2072.7,2072.4,1.15239542]
[1773312284798,1.63203508,2072.7,2072.3,1.20638903]
[1773312285106,1.63003508,2072.6,2072.0,1.20650547]
[1773312285293,1.63003508,2072.6,2072.0,2.3308633]
[1773312285491,1.63003508,2072.6,2072.1,1.12435783]
[1773312285814,1.63003508,2072.2,2071.9,1.20759324]
[1773312287701,1.63003508,2072.1,2071.9,0.001]
[1773312288988,1.63003508,2072.4,2071.9,0.001]
[1773312289583,1.63003508,2072.3,2071.9,0.001]
[1773312290117,1.63003508,2072.5,2071.9,1.08356251]
[1773312290297,2.83633796,2072.5,2071.9,1.08356251]
[1773312291001,2.8363271,2072.5,2071.9,1.08356251]
[1773312291206,1.63003508,2072.5,2071.9,1.08356251]
[1773312291409,2.83631006,2072.5,2071.9,1.08356251]
[1773312291901,2.83631006,2072.5,2072.1,0.001]
[1773312292089,1.67016256,2072.4,2072.1,0.001]
[1773312292491,1.67216256,2072.3,2072.1,0.001]
[1773312293405,0.002,2072.3,2072.1,1.06202572]
[1773312295687,0.002,2072.3,2072.2,1.20644725]
[1773312296294,0.002,2072.3,2072.2,2.24645882]
[1773312296710,0.002,2072.3,2072.2,1.04001157]
[1773312297220,0.002,2072.3,2072.1,2.24057312]
[1773312297925,0.002,2072.3,2072.1,0.001]
[1773312298129,1.67216256,2072.3,2072.1,0.001]
[1773312300225,1.67016256,2072.2,2072.1,0.001]
[1773312300428,1.67016256,2072.0,2071.9,0.001]
[1773312301603,1.67016256,2072.0,2071.6,0.001]
[1773312303324,1.59640026,2073.4,2072.1,1.68520425]
[1773312303325,0.002,2072.6,2072.1,1.68520425]
[1773312303524,0.002,2072.6,2072.4,1.68520425]
[1773312304506,0.002,2072.6,2072.5,2.89147686]
[1773312304919,0.002,2072.9,2072.6,1.68520425]
[1773312305121,0.002,2072.9,2072.5,1.20627261]
[1773312305122,1.67216256,2072.9,2072.5,1.20627261]
[1773312305430,0.002,2072.9,2072.5,2.89147686]
[1773312305615,0.002,2072.9,2072.6,1.68520425]
[1773312306418,0.002,2072.9,2072.7,2.89136047]
[1773312306618,0.002,2072.9,2072.8,1.68520425]
[1773312308530,0.002,2072.9,2072.8,2.89130228]
[1773312311226,0.002,2073.2,2072.9,1.68520425]
[1773312312232,0.002,2073.2,2072.8,1.20609803]
[1773312315670,1.67216256,2073.2,2072.8,1.20609803]
[1773312316488,1.67216256,2073.2,2072.6,4.82475711]
[1773312316645,1.67216256,2073.2,2072.5,1.20621441]
[1773312316850,1.67016256,2073.1,2072.5,1.20621441]
[1773312317938,1.67016256,2073.1,2072.5,2.89141866]
[1773312318138,1.67016256,2073.1,2072.6,0.001]
[1773312318338,0.002,2073.0,2072.6,0.001]
[1773312318939,0.002,2073.0,2072.6,1.68620425]
[1773312319353,1.62392097,2073.1,2072.6,0.001]
[1773312320577,1.62392097,2073.1,2072.6,1.56698651]
[1773312320947,0.002,2073.2,2072.7,2.77214273]
[1773312321448,0.002,2073.2,2072.8,1.56598651]
[1773312322658,0.002,2073.2,2072.7,1.20615622]
[1773312322659,1.48237807,2073.2,2072.7,1.20615622]
[1773312322862,1.48237807,2073.2,2072.7,2.77214273]
[1773312323984,0.002,2073.2,2072.8,1.56598651]
[1773312324389,0.002,2073.5,2072.7,1.20615622]
[1773312324390,0.002,2073.5,2073.0,1.56598651]
[1773312325084,0.002,2073.5,2073.2,1.56598651]
[1773312325450,2.97479925,2073.8,2073.2,1.56598651]
[1773312327053,2.97479925,2073.8,2073.3,1.20580716]
[1773312327254,1.49442118,2073.8,2073.4,1.56598651]
[1773312327555,2.97479925,2073.8,2073.3,1.20580716]
[1773312327890,1.48037807,2073.6,2073.0,6.38988376]
[1773312328068,1.48037807,2073.6,2073.1,1.20592349]
[1773312328382,1.48037807,2073.6,2073.0,1.20593862]
[1773312329153,1.48037807,2073.6,2072.9,4.82404817]
[1773312329356,1.48037807,2073.6,2072.9,6.39003468]
[1773312331065,1.48037807,2073.6,2072.9,7.03639105]
[1773312331267,1.48237807,2073.6,2073.0,1.56598651]
[1773312331470,0.002,2073.6,2073.2,1.56598651]
[1773312332087,0.002,2073.6,2073.4,1.56598651]
[1773312333073,1.49642118,2073.8,2073.4,1.56598651]
[1773312333273,1.49642118,2073.8,2073.5,1.20569086]
[1773312337406,1.49642118,2073.8,2073.6,1.56598651]
[1773312338105,1e-08,2073.8,2073.6,1.56598651]
[1773312338705,1e-08,2073.8,2073.4,6.38879211]
[1773312339020,1.48037808,2073.8,2073.4,6.38879211]
[1773312339184,1e-08,2073.8,2073.4,6.38879211]
[1773312339505,1e-08,2073.8,2073.4,1.20574901]
[1773312339712,1e-08,2073.8,2073.3,1.20577814]
[1773312340484,1e-08,2073.8,2073.3,2.77176465]
[1773312341104,1e-08,2073.8,2073.4,1.56598651]